bitfinex/quotes_BTCUSD_20250928
["timestamp","ask_amount","ask_price","bid_price","bid_amount"]
[1759085491200,7.97052391,110530.0,110520.0,0.02956]
[1759085491402,8.34666968,110530.0,110520.0,0.02956]
[1759085493628,8.52761602,110530.0,110520.0,0.02956]
[1759085494614,8.34666968,110530.0,110520.0,0.02956]
[1759085502671,8.06486968,110530.0,110520.0,0.02956]
[1759085502822,8.34662968,110530.0,110520.0,0.02956]
[1759085506681,8.52757602,110530.0,110520.0,0.02462]
[1759085506908,8.90372179,110530.0,110520.0,0.02462]
[1759085511184,8.72277545,110530.0,110520.0,0.02462]
[1759085516574,8.90372179,110530.0,110520.0,0.02462]
[1759085517578,8.72277545,110530.0,110520.0,0.02462]
[1759085518541,8.90372179,110530.0,110520.0,0.02462]
[1759085524508,8.69335818,110530.0,110520.0,0.02462]
[1759085524867,8.69379818,110530.0,110520.0,0.02462]
[1759085528767,8.69379818,110530.0,110520.0,0.02658]
[1759085528982,8.23065184,110530.0,110520.0,0.02658]
[1759085529200,8.51281184,110530.0,110520.0,0.02962]
[1759085530240,7.4783603,110530.0,110520.0,0.02962]
[1759085530439,8.51281184,110530.0,110520.0,0.02962]
[1759085533806,8.51281184,110530.0,110520.0,0.02658]
[1759085534017,8.51281184,110530.0,110520.0,0.02971]
[1759085535588,8.51277184,110530.0,110520.0,0.02971]
[1759085536204,7.85448919,110530.0,110520.0,0.02971]
[1759085536768,8.13660919,110530.0,110520.0,0.02971]
[1759085539491,7.85448919,110530.0,110520.0,0.02971]
[1759085539828,8.13656919,110530.0,110520.0,0.02971]
[1759085540039,7.85448919,110530.0,110520.0,0.02971]
[1759085540184,8.13660919,110530.0,110520.0,0.02971]
[1759085541618,7.85448919,110530.0,110520.0,0.02971]
[1759085541849,8.13660919,110530.0,110520.0,0.02971]
[1759085549692,7.85448919,110530.0,110520.0,0.02971]
[1759085549906,8.13664919,110530.0,110520.0,0.02971]
[1759085553262,8.133935,110530.0,110520.0,0.02971]
[1759085557210,7.851775,110530.0,110520.0,0.02971]
[1759085557503,8.133855,110530.0,110520.0,0.02971]
[1759085558391,7.47564611,110530.0,110520.0,0.02971]
[1759085558597,8.134135,110530.0,110520.0,0.02971]
[1759085564124,7.95287165,110530.0,110520.0,0.02971]
[1759085574825,7.95287165,110530.0,110520.0,0.0779477]
[1759085577767,7.92563897,110530.0,110520.0,0.0779477]
[1759085578340,7.64327897,110530.0,110520.0,0.0779477]
[1759085578488,7.64327897,110530.0,110520.0,0.10517734]
[1759085582252,7.26715008,110530.0,110520.0,0.10517734]
[1759085582455,7.64327897,110530.0,110520.0,0.10517734]
[1759085582818,7.26715008,110530.0,110520.0,0.10517734]
[1759085583021,7.25295255,110530.0,110520.0,0.10517734]
[1759085584001,7.25095255,110530.0,110520.0,0.10517734]
[1759085584202,7.25095255,110530.0,110520.0,0.10717734]
[1759085584444,7.24795255,110530.0,110520.0,0.10717734]
[1759085586029,7.26214938,110530.0,110520.0,0.10717734]
[1759085586225,7.26214938,110530.0,110520.0,0.11017734]
[1759085589177,7.26214938,110530.0,110520.0,0.12827361]
[1759085589714,6.92214938,110530.0,110520.0,0.12827361]
[1759085589854,6.92214938,110530.0,110520.0,0.11017734]
[1759085592201,6.92214938,110530.0,110520.0,0.39237734]
[1759085597424,6.92214938,110530.0,110520.0,0.39233734]
[1759085597840,6.7114481,110530.0,110520.0,0.39233734]
[1759085598048,8.05120195,110530.0,110520.0,0.39233734]
[1759085599045,8.42718516,110530.0,110520.0,0.39233734]
[1759085610572,8.42718516,110530.0,110520.0,0.11017734]
[1759085611060,8.42718516,110530.0,110520.0,0.39217734]
[1759085613714,8.22456984,110530.0,110520.0,0.39217734]
[1759085613922,8.37598321,110530.0,110520.0,0.39217734]
[1759085618299,8.39956195,110530.0,110520.0,0.39217734]
[1759085618513,8.39956195,110530.0,110520.0,0.11017734]
[1759085618974,8.39956195,110530.0,110520.0,0.39209734]
[1759085619571,8.39956195,110530.0,110520.0,0.11017734]
[1759085619837,8.39956195,110530.0,110520.0,0.39209734]
[1759085621050,8.39956195,110530.0,110520.0,0.11017734]
[1759085621273,8.39956195,110530.0,110520.0,0.39217734]
[1759085621474,8.39956195,110530.0,110520.0,0.11017734]
[1759085621687,8.39956195,110530.0,110520.0,0.39217734]
[1759085625612,8.39956195,110530.0,110520.0,0.39213734]
[1759085626242,8.20841597,110530.0,110520.0,0.39213734]
[1759085627569,8.39956195,110530.0,110520.0,0.39213734]
[1759085643236,8.02357874,110530.0,110520.0,0.39213734]
[1759085643438,0.39956195,110530.0,110520.0,0.39213734]
[1759085643750,8.39956195,110530.0,110520.0,0.39213734]
[1759085645317,8.02357874,110530.0,110520.0,0.39213734]
[1759085645522,8.39956195,110530.0,110520.0,0.39213734]
[1759085646575,8.39956195,110530.0,110520.0,0.38900734]
[1759085648415,8.02357874,110530.0,110520.0,0.38900734]
[1759085648623,8.39956195,110530.0,110520.0,0.39197734]
[1759085649535,8.39956195,110530.0,110520.0,0.38900734]
[1759085653796,8.39956195,110530.0,110520.0,0.39214734]
[1759085656740,8.02357874,110530.0,110520.0,0.39214734]
[1759085656949,8.39956195,110530.0,110520.0,0.39214734]
[1759085657763,8.02357874,110530.0,110520.0,0.39214734]
[1759085658046,8.39956195,110530.0,110520.0,0.39214734]
[1759085658524,8.02357874,110530.0,110520.0,0.39214734]
[1759085664083,8.02357874,110530.0,110520.0,0.39202734]
[1759085668721,8.02357874,110530.0,110520.0,0.38692734]
[1759085669079,0.02357874,110530.0,110520.0,0.38692734]
[1759085669365,0.37596945,110540.0,110530.0,0.0482377]
[1759085669549,8.37596945,110540.0,110530.0,0.3300777]
[1759085669757,8.37596945,110540.0,110530.0,0.3543477]
[1759085670110,8.37596945,110540.0,110530.0,0.38157367]
[1759085672455,8.41256684,110540.0,110530.0,0.38157367]
[1759085691113,0.03659739,110540.0,110530.0,0.76256312]
[1759085691377,0.03659739,110540.0,110530.0,0.85684312]
[1759085691562,0.5,110540.0,110530.0,0.85684312]
[1759085691809,8.0,110540.0,110530.0,0.85684312]
[1759085692274,0.0002,110550.0,110530.0,0.85684312]
[1759085692499,0.0002,110550.0,110540.0,0.02115299]
[1759085692904,0.0002,110550.0,110540.0,0.04777299]
[1759085693055,0.0002,110550.0,110540.0,0.07499297]
[1759085693271,0.71136945,110560.0,110540.0,0.07499297]
[1759085693476,0.74818015,110560.0,110550.0,0.2849]
[1759085693682,8.74818015,110560.0,110550.0,0.28686]
[1759085693851,8.74818015,110560.0,110550.0,0.33873999]
[1759085694458,8.74818015,110560.0,110550.0,0.05689999]
[1759085694642,8.74864208,110560.0,110550.0,0.33873999]
[1759085694797,8.74864208,110560.0,110550.0,0.34073999]
[1759085696151,8.74864208,110560.0,110550.0,0.06189999]
[1759085696287,8.74864208,110560.0,110550.0,0.34369999]
[1759085697462,8.74864208,110560.0,110550.0,0.06189999]
[1759085697885,8.74864208,110560.0,110550.0,0.15481999]
[1759085699483,8.74864208,110560.0,110550.0,0.06189999]
[1759085699685,8.74864208,110560.0,110550.0,0.15481999]
[1759085702392,8.74864208,110560.0,110550.0,0.10511769]
[1759085702770,8.74864208,110560.0,110550.0,0.20311769]
[1759085703173,8.74864208,110560.0,110550.0,0.38319769]
[1759085703646,8.74864208,110560.0,110550.0,0.38691769]
[1759085707050,8.74864208,110560.0,110550.0,0.10511769]
[1759085707307,8.74864208,110560.0,110550.0,0.38691769]
[1759085707750,8.74864208,110560.0,110550.0,0.3596977]
[1759085710526,8.41324208,110560.0,110550.0,0.3596977]
[1759085715627,8.75324208,110560.0,110550.0,0.3596977]
[1759085720310,9.12908595,110560.0,110550.0,0.3596977]
[1759085721049,8.92209205,110560.0,110550.0,0.3596977]
[1759085721194,9.12974601,110560.0,110550.0,0.3596977]
[1759085722382,9.12974601,110560.0,110550.0,0.3596577]
[1759085727541,9.12974601,110560.0,110550.0,0.38687976]
[1759085729948,9.12974601,110560.0,110550.0,0.39192976]
[1759085739238,9.50565267,110560.0,110550.0,0.39192976]
[1759085740870,9.50565267,110560.0,110550.0,0.38687976]
[1759085744875,9.50565267,110560.0,110550.0,0.10511976]
[1759085745112,9.50565267,110560.0,110550.0,0.38687976]
[1759085745472,9.50565267,110560.0,110550.0,0.10511976]
[1759085745713,9.50565267,110560.0,110550.0,0.3596577]
[1759085746027,9.50565267,110560.0,110550.0,0.1766577]
[1759085751175,9.50565267,110560.0,110550.0,0.0778977]
[1759085761816,9.68654992,110560.0,110550.0,0.0778977]
[1759085766320,9.68654992,110560.0,110550.0,0.10512092]
[1759085766730,9.50565267,110560.0,110550.0,0.10512092]
[1759085767696,9.50565267,110560.0,110550.0,0.10061485]
[1759085770977,9.16519074,110560.0,110550.0,0.10061485]
[1759085777261,9.16519074,110560.0,110550.0,0.10271485]
[1759085780317,8.78939526,110560.0,110550.0,0.10271485]
[1759085782383,9.12939526,110560.0,110550.0,0.10271485]
[1759085783981,9.12939526,110560.0,110550.0,0.10564485]
[1759085784192,8.75343301,110560.0,110550.0,0.10564485]
[1759085784648,8.37747076,110560.0,110550.0,0.12373621]
[1759085784868,8.03747076,110560.0,110550.0,0.12373621]
[1759085785086,8.41343301,110560.0,110550.0,0.12373621]
[1759085785294,8.41343301,110560.0,110550.0,0.10564485]
[1759085786964,8.41343301,110560.0,110550.0,0.29868485]
[1759085787220,8.41343301,110560.0,110550.0,0.10564485]
[1759085787605,8.41343301,110560.0,110550.0,0.30164485]
[1759085788043,8.41343301,110560.0,110550.0,0.10564485]
[1759085788183,8.41343301,110560.0,110550.0,0.20768485]
[1759085788382,8.41343301,110560.0,110550.0,0.30196485]
[1759085790085,8.41343301,110560.0,110550.0,0.48180485]
[1759085790294,8.41343301,110560.0,110550.0,0.10564485]
[1759085790681,8.41343301,110560.0,110550.0,0.30228485]
[1759085791401,8.41343301,110560.0,110550.0,0.38756485]
[1759085791607,8.41343301,110560.0,110550.0,0.10564485]
[1759085791815,8.41343301,110560.0,110550.0,0.48184485]
[1759085792576,8.41343301,110560.0,110550.0,0.38756485]
[1759085792775,8.41343301,110560.0,110550.0,0.48184485]
[1759085794592,8.41343301,110560.0,110550.0,0.38756485]
[1759085794837,8.41343301,110560.0,110550.0,0.48184485]
[1759085795985,8.41343301,110560.0,110550.0,0.48180485]
[1759085796984,8.41343301,110560.0,110550.0,0.10564485]
[1759085797183,8.41343301,110560.0,110550.0,0.30188485]
[1759085797401,8.41343301,110560.0,110550.0,0.10564485]
[1759085797615,8.41343301,110560.0,110550.0,0.48176485]
[1759085802269,8.41343301,110560.0,110550.0,0.38748485]
[1759085802525,8.41343301,110560.0,110550.0,0.48176485]
[1759085805231,8.231328,110560.0,110550.0,0.48176485]
[1759085805437,8.41343301,110560.0,110550.0,0.48176485]
[1759085821876,8.41343301,110560.0,110550.0,0.10564485]
[1759085822082,8.41343301,110560.0,110550.0,0.48164485]
[1759085829272,8.03747076,110560.0,110550.0,0.48164485]
[1759085829441,8.41343301,110560.0,110550.0,0.48164485]
[1759085832780,0.37596225,110560.0,110550.0,0.48164485]
[1759085832954,8.37596225,110560.0,110550.0,0.48164485]
[1759085836030,8.41349163,110560.0,110550.0,0.48164485]
[1759085836789,8.41349163,110560.0,110550.0,0.47661485]
[1759085837117,8.78945388,110560.0,110550.0,0.38233485]
[1759085837364,8.41349163,110560.0,110550.0,0.38233485]
[1759085840288,8.78932512,110560.0,110550.0,0.38233485]
[1759085847862,8.78932512,110560.0,110550.0,0.38750485]
[1759085848452,8.03752938,110560.0,110550.0,0.38750485]
[1759085848660,8.78932512,110560.0,110550.0,0.38750485]
[1759085849410,8.61365561,110560.0,110550.0,0.38750485]
[1759085849621,8.78932512,110560.0,110550.0,0.38750485]
[1759085854524,8.03752938,110560.0,110550.0,0.38750485]
[1759085854729,8.78932512,110560.0,110550.0,0.38750485]
[1759085856129,8.78932512,110560.0,110550.0,0.38233485]
[1759085860898,8.78932512,110560.0,110550.0,0.38434485]
[1759085863939,8.78932512,110560.0,110550.0,0.38750485]
[1759085869533,8.78932512,110560.0,110550.0,0.38746485]
[1759085875503,8.78932512,110560.0,110550.0,0.10578485]
[1759085875841,8.78932512,110560.0,110550.0,0.20858485]
[1759085881064,8.59230411,110560.0,110550.0,0.20858485]
[1759085881275,8.75179574,110560.0,110550.0,0.20858485]
[1759085881850,8.75179574,110560.0,110550.0,0.20542485]
[1759085883083,8.78366848,110560.0,110550.0,0.20835485]
[1759085884556,8.03187274,110560.0,110550.0,0.20835485]
[1759085884767,8.78366848,110560.0,110550.0,0.20835485]
[1759085902358,8.40772029,110560.0,110550.0,0.20835485]
[1759085905039,0.40772029,110560.0,110550.0,0.20835485]
[1759085907337,0.40772029,110560.0,110550.0,0.10555485]
[1759085907544,0.40772029,110560.0,110550.0,0.48151485]
[1759085908439,0.03187274,110560.0,110550.0,0.48151485]
[1759085908623,8.40772029,110560.0,110550.0,0.48151485]
[1759085908799,0.37584755,110560.0,110550.0,0.48151485]
[1759085909233,0.37584755,110560.0,110550.0,0.10555485]
[1759085909409,0.37584755,110560.0,110550.0,0.48155485]
[1759085909809,0.41289285,110560.0,110550.0,0.48155485]
[1759085911042,0.0370453,110560.0,110550.0,0.48155485]
[1759085911244,0.37584755,110560.0,110550.0,0.48155485]
[1759085911789,0.17296223,110560.0,110550.0,0.48155485]
[1759085911995,0.67296223,110560.0,110550.0,0.48163485]
[1759085912227,8.67296223,110560.0,110550.0,0.48163485]
[1759085912434,0.17296223,110560.0,110550.0,0.38735485]
[1759085912604,0.67296223,110560.0,110550.0,0.48163485]
[1759085912811,8.67296223,110560.0,110550.0,0.48163485]
[1759085913016,0.17296223,110560.0,110550.0,0.10555485]
[1759085913219,0.67296223,110560.0,110550.0,0.48163485]
[1759085913424,8.67296223,110560.0,110550.0,0.48163485]
[1759085913632,0.17296223,110560.0,110550.0,0.48163485]
[1759085913825,8.67296223,110560.0,110550.0,0.48163485]
[1759085914033,0.17296223,110560.0,110550.0,0.48163485]
[1759085914206,0.67296223,110560.0,110550.0,0.48163485]
[1759085914412,8.67296223,110560.0,110550.0,0.48163485]
[1759085914583,0.21063975,110560.0,110550.0,0.48163485]
[1759085914784,0.21063975,110560.0,110550.0,0.10555485]
[1759085914995,0.21063975,110560.0,110550.0,0.48159485]
[1759085921096,0.21063975,110560.0,110550.0,0.38727485]
[1759085921309,0.21063975,110560.0,110550.0,0.48155485]
[1759085923233,0.21063975,110560.0,110550.0,0.48151485]
[1759085923732,0.03767752,110560.0,110550.0,0.48151485]
[1759085923926,0.41352507,110560.0,110550.0,0.48151485]
[1759085924142,0.37584755,110560.0,110550.0,0.48151485]
[1759085924359,0.41288429,110560.0,110550.0,0.48151485]
[1759085925233,0.41288429,110560.0,110550.0,0.48159485]
[1759085929807,0.42707574,110560.0,110550.0,0.48159485]
[1759085930413,0.42707574,110560.0,110550.0,0.10555485]
[1759085930620,0.42707574,110560.0,110550.0,0.48171485]
[1759085931148,0.41288429,110560.0,110550.0,0.48171485]
[1759085934453,0.03703674,110560.0,110550.0,0.48171485]
[1759085934661,0.42707574,110560.0,110550.0,0.48171485]
[1759085934834,0.37604755,110570.0,110560.0,0.0482377]
[1759085935067,0.37609372,110570.0,110560.0,0.0482377]
[1759085935298,0.37609372,110570.0,110560.0,0.0726077]
[1759085935432,0.37609372,110570.0,110560.0,0.09982397]
[1759085936454,0.37609372,110570.0,110560.0,0.12303369]
[1759085936854,0.37609372,110570.0,110560.0,0.10494397]
[1759085937301,0.2060534,110570.0,110560.0,0.10494397]
[1759085938095,0.24288391,110570.0,110560.0,0.10494397]
[1759085938693,0.24288391,110570.0,110560.0,0.10694397]
[1759085938940,0.25707477,110570.0,110560.0,0.10494397]
[1759085939289,0.24288391,110570.0,110560.0,0.12603369]
[1759085939914,0.24288391,110570.0,110560.0,0.12803369]
[1759085940248,0.24288391,110570.0,110560.0,0.10794397]
[1759085940450,0.24288391,110570.0,110560.0,0.10481397]
[1759085940657,0.24288391,110570.0,110560.0,0.10782397]
[1759085941349,0.24288391,110570.0,110560.0,0.38958397]
[1759085941547,0.24288391,110570.0,110560.0,0.48386397]
[1759085942148,0.25707432,110570.0,110560.0,0.48386397]
[1759085943927,0.25707432,110570.0,110560.0,0.10782397]
[1759085944135,0.25707432,110570.0,110560.0,0.48382397]
[1759085944748,0.25707432,110570.0,110560.0,0.38954397]
[1759085944947,0.25707432,110570.0,110560.0,0.48382397]
[1759085945302,0.25707432,110570.0,110560.0,0.10782397]
[1759085945507,0.25707432,110570.0,110560.0,0.32458397]
[1759085945715,0.25707432,110570.0,110560.0,0.10782397]
[1759085945946,0.25707432,110570.0,110560.0,0.48382397]
[1759085946271,0.24288391,110570.0,110560.0,0.48382397]
[1759085949462,0.25707469,110570.0,110560.0,0.48382397]
[1759085949877,0.24288391,110570.0,110560.0,0.48382397]
[1759085950163,0.24288391,110570.0,110560.0,0.10782397]
[1759085950395,0.24288391,110570.0,110560.0,0.48378397]
[1759085950623,0.24288391,110570.0,110560.0,0.48577397]
[1759085952752,0.25707429,110570.0,110560.0,0.10981397]
[1759085952967,0.25707429,110570.0,110560.0,0.48577397]
[1759085954206,0.24288391,110570.0,110560.0,0.48577397]
[1759085954651,0.24288391,110570.0,110560.0,0.48897397]
[1759085957453,0.25707432,110570.0,110560.0,0.48897397]
[1759085957713,0.24288391,110570.0,110560.0,0.48897397]
[1759085961039,0.25707432,110570.0,110560.0,0.48897397]
[1759085962305,0.41262681,110570.0,110560.0,0.48897397]
[1759085965346,0.42681722,110570.0,110560.0,0.48897397]
[1759085966801,0.41262681,110570.0,110560.0,0.48897397]
[1759085969965,0.42681722,110570.0,110560.0,0.48897397]
[1759085971095,0.41262681,110570.0,110560.0,0.48897397]
[1759085975570,0.03687668,110570.0,110560.0,0.48897397]
[1759085975782,0.41262681,110570.0,110560.0,0.48897397]
[1759085983608,0.24907471,110570.0,110560.0,0.48897397]
[1759085984693,0.28615886,110570.0,110560.0,0.48897397]
[1759085987931,0.41283428,110570.0,110560.0,0.48897397]
[1759085988369,0.42702488,110570.0,110560.0,0.48897397]
[1759085989788,0.41283428,110570.0,110560.0,0.48897397]
[1759085990877,0.03708415,110570.0,110560.0,0.48897397]
[1759085991098,0.72045013,110580.0,110560.0,0.48897397]
[1759085991308,0.71595013,110580.0,110570.0,0.00319]
[1759085991712,0.71595013,110580.0,110570.0,0.02824]
[1759085992172,0.75359066,110580.0,110570.0,0.02824]
[1759085992300,0.75359066,110580.0,110570.0,0.05545398]
[1759085993349,0.75359066,110580.0,110570.0,0.05745398]
[1759085993970,0.76778033,110580.0,110570.0,0.05745398]
[1759085994185,0.37784053,110580.0,110570.0,0.05745398]
[1759085994380,0.75359066,110580.0,110570.0,0.05745398]
[1759085994858,0.75359066,110580.0,110570.0,0.05945398]
[1759085995735,0.41359066,110580.0,110570.0,0.07754206]
[1759085997248,0.42777989,110580.0,110570.0,0.07754206]
[1759085998271,0.22016817,110580.0,110570.0,0.07754206]
[1759085998477,0.20597894,110580.0,110570.0,0.07754206]
[1759085999804,0.20597894,110580.0,110570.0,0.12577976]
[1759086000157,0.24336158,110580.0,110570.0,0.12577976]
[1759086000797,0.41313277,110580.0,110570.0,0.12577976]
[1759086001431,0.41313277,110580.0,110570.0,0.10769168]
[1759086001656,0.41313277,110580.0,110570.0,0.48357168]
[1759086001863,0.42732198,110580.0,110570.0,0.48357168]
[1759086002064,0.05157185,110580.0,110570.0,0.48357168]
[1759086002796,0.03738264,110580.0,110570.0,0.48357168]
[1759086003256,0.82975013,110590.0,110570.0,0.48357168]
[1759086003465,8.0,110580.0,110570.0,0.48357168]
[1759086003683,8.0,110580.0,110570.0,0.4563577]
[1759086004066,8.0,110580.0,110570.0,0.481571]
[1759086004624,8.0,110580.0,110570.0,0.479571]
[1759086005024,8.03763852,110580.0,110570.0,0.479571]
[1759086005269,0.03763852,110580.0,110570.0,0.479571]
[1759086005528,0.82529628,110590.0,110570.0,0.479571]
[1759086005742,8.0,110580.0,110570.0,0.479571]
[1759086005947,8.0,110580.0,110570.0,0.4543577]
[1759086006135,8.0,110580.0,110570.0,0.48357099]
[1759086006536,8.0,110580.0,110570.0,0.48157099]
[1759086006754,8.0,110580.0,110570.0,0.48357099]
[1759086006977,8.0141892,110580.0,110570.0,0.48157099]
[1759086007171,0.0141892,110580.0,110570.0,0.48357099]
[1759086007668,0.82529628,110590.0,110570.0,0.48157099]
[1759086007875,8.0,110580.0,110570.0,0.48157099]
[1759086008046,8.0,110580.0,110570.0,0.4543577]
[1759086008247,8.0,110580.0,110570.0,0.4523577]
[1759086008462,8.0,110580.0,110570.0,0.47957099]
[1759086008798,8.0,110580.0,110570.0,0.48457099]
[1759086009026,8.0,110580.0,110570.0,0.48757099]
[1759086009623,8.03724825,110580.0,110570.0,0.48757099]
[1759086009905,0.03724825,110580.0,110570.0,0.11169099]
[1759086010111,0.23562674,110580.0,110570.0,0.48753099]
[1759086010352,0.71599628,110590.0,110580.0,0.0482377]
[1759086010601,8.71599628,110590.0,110580.0,0.0482377]
[1759086010852,8.75359061,110590.0,110580.0,0.0764777]
[1759086011068,8.76777944,110590.0,110580.0,0.0764777]
[1759086011741,8.76777944,110590.0,110580.0,0.10568921]
[1759086011957,8.76777944,110590.0,110580.0,0.12377566]
[1759086012172,8.76777944,110590.0,110580.0,0.10568921]
[1759086013030,8.76777944,110590.0,110580.0,0.10768921]
[1759086013240,8.76777944,110590.0,110580.0,0.38661921]
[1759086013933,8.76777944,110590.0,110580.0,0.38454921]
[1759086015830,8.76777944,110590.0,110580.0,0.38450921]
[1759086018712,8.76777944,110590.0,110580.0,0.10242921]
[1759086018873,8.76777944,110590.0,110580.0,0.38446921]
[1759086020791,8.76777944,110590.0,110580.0,0.38442921]
[1759086022682,8.42753329,110590.0,110580.0,0.38442921]
[1759086024453,8.42737549,110590.0,110580.0,0.38438921]
[1759086025268,8.05178316,110590.0,110580.0,0.38636921]
[1759086025470,8.42737549,110590.0,110580.0,0.38939921]
[1759086025929,8.05178316,110590.0,110580.0,0.38939921]
[1759086027721,8.05178316,110590.0,110580.0,0.38935921]
[1759086028557,8.05178316,110590.0,110580.0,0.38632921]
[1759086030615,8.05178316,110590.0,110580.0,0.10440921]
[1759086030852,8.05178316,110590.0,110580.0,0.38628921]
[1759086031054,8.05178316,110590.0,110580.0,0.38430921]
[1759086032542,8.42737549,110590.0,110580.0,0.38430921]
[1759086036924,8.42737549,110590.0,110580.0,0.38422921]
[1759086037995,8.42737549,110590.0,110580.0,0.38418921]
[1759086038476,8.41318666,110590.0,110580.0,0.38418921]
[1759086039697,8.41318666,110590.0,110580.0,0.10242921]
[1759086039912,8.41318666,110590.0,110580.0,0.38418921]
[1759086040740,8.41318666,110590.0,110580.0,0.10242921]
[1759086040952,8.41318666,110590.0,110580.0,0.38422921]
[1759086044147,8.4273755,110590.0,110580.0,0.38422921]
[1759086045183,8.4273755,110590.0,110580.0,0.10242921]
[1759086045409,8.4273755,110590.0,110580.0,0.20402921]
[1759086045772,8.4273755,110590.0,110580.0,0.10242921]
[1759086045980,8.4273755,110590.0,110580.0,0.38418921]
[1759086055586,8.4273755,110590.0,110580.0,0.38414921]
[1759086056917,8.22881393,110590.0,110580.0,0.38414921]
[1759086057194,8.4273755,110590.0,110580.0,0.38414921]
[1759086065812,8.4273755,110590.0,110580.0,0.38621921]
[1759086066654,8.4273755,110590.0,110580.0,0.38943921]
[1759086068336,8.4273755,110590.0,110580.0,0.38621921]
[1759086071402,8.2130813,110590.0,110580.0,0.38621921]
[1759086071716,8.37559233,110590.0,110580.0,0.10449921]
[1759086071934,8.37559233,110590.0,110580.0,0.38617921]
[1759086073069,8.37559233,110590.0,110580.0,0.38929921]
[1759086075707,8.4123392,110590.0,110580.0,0.38929921]
[1759086078251,8.42652803,110590.0,110580.0,0.38929921]
[1759086079351,8.4123392,110590.0,110580.0,0.38929921]
[1759086084348,8.41237272,110590.0,110580.0,0.38929921]
[1759086094956,8.41237272,110590.0,110580.0,0.10761921]
[1759086095173,8.41237272,110590.0,110580.0,0.38933921]
[1759086098404,8.42656142,110590.0,110580.0,0.38933921]
[1759086099393,8.20905946,110590.0,110580.0,0.38933921]
[1759086099609,8.41237272,110590.0,110580.0,0.38933921]
[1759086100002,0.41237272,110590.0,110580.0,0.38933921]
[1759086100172,0.41237272,110590.0,110580.0,0.10242921]
[1759086100377,0.41237272,110590.0,110580.0,0.38406921]
[1759086102842,0.42656134,110590.0,110580.0,0.38406921]
[1759086103830,0.41237272,110590.0,110580.0,0.38406921]
[1759086106818,0.42656134,110590.0,110580.0,0.38406921]
[1759086107997,0.41237272,110590.0,110580.0,0.38406921]
[1759086110812,0.41237272,110590.0,110580.0,0.38934921]
[1759086111553,0.42656134,110590.0,110580.0,0.38934921]
[1759086112476,0.41237272,110590.0,110580.0,0.38934921]
[1759086113099,0.23399221,110590.0,110580.0,0.38934921]
[1759086114148,0.27074161,110590.0,110580.0,0.38934921]
[1759086122871,0.28493023,110590.0,110580.0,0.38934921]
[1759086123465,0.28493023,110590.0,110580.0,0.48358921]
[1759086124106,0.27074161,110590.0,110580.0,0.48358921]
[1759086126802,0.27074161,110590.0,110580.0,0.10770921]
[1759086126939,0.27074161,110590.0,110580.0,0.48358921]
[1759086128842,0.41237525,110590.0,110580.0,0.48358921]
[1759086130961,0.42656384,110590.0,110580.0,0.48358921]
[1759086132407,0.41237525,110590.0,110580.0,0.48358921]
[1759086135731,0.42656384,110590.0,110580.0,0.48358921]
[1759086136794,0.41237525,110590.0,110580.0,0.48358921]
[1759086137291,0.41237525,110590.0,110580.0,0.10770921]
[1759086137439,0.41237525,110590.0,110580.0,0.48354921]
[1759086138468,0.41237525,110590.0,110580.0,0.10770921]
[1759086138687,0.41237525,110590.0,110580.0,0.38930921]
[1759086140076,0.42656387,110590.0,110580.0,0.38930921]
[1759086141329,0.41237525,110590.0,110580.0,0.38930921]
[1759086141728,8.41237525,110590.0,110580.0,0.10242921]
[1759086141948,8.41237525,110590.0,110580.0,0.38402921]
[1759086143751,8.41237525,110590.0,110580.0,0.38617921]
[1759086144182,8.41237525,110590.0,110580.0,0.38910921]
[1759086144623,8.42656411,110590.0,110580.0,0.38910921]
[1759086145631,8.41237525,110590.0,110580.0,0.38910921]
[1759086145778,8.21476928,110590.0,110580.0,0.38910921]
[1759086146184,8.0,110590.0,110580.0,0.38910921]
[1759086146539,8.37562121,110590.0,110580.0,0.38910921]
[1759086148025,8.41305911,110590.0,110580.0,0.38910921]
[1759086154124,8.41305911,110590.0,110580.0,0.10750921]
[1759086154330,8.41305911,110590.0,110580.0,0.38910921]
[1759086154525,8.41305911,110590.0,110580.0,0.10457921]
[1759086154843,8.41305911,110590.0,110580.0,0.38617921]
[1759086156703,8.41305911,110590.0,110580.0,0.38910921]
[1759086158305,8.41305911,110590.0,110580.0,0.38617921]
[1759086160411,8.4272479,110590.0,110580.0,0.38617921]
[1759086160619,8.41305911,110590.0,110580.0,0.38617921]
[1759086161266,8.41305911,110590.0,110580.0,0.38910921]
[1759086161267,8.0374379,110590.0,110580.0,0.38910921]
[1759086161494,8.41305911,110590.0,110580.0,0.38910921]
[1759086163486,8.4272479,110590.0,110580.0,0.38910921]
[1759086164835,8.41305911,110590.0,110580.0,0.38910921]
[1759086165032,8.21836269,110590.0,110580.0,0.38910921]
[1759086165181,8.41305911,110590.0,110580.0,0.38910921]
[1759086167832,8.42724793,110590.0,110580.0,0.38910921]
[1759086169076,8.41305911,110590.0,110580.0,0.38910921]
[1759086171537,8.41305911,110590.0,110580.0,0.38402921]
[1759086172276,8.4272479,110590.0,110580.0,0.38402921]
[1759086172481,8.41305911,110590.0,110580.0,0.38402921]
[1759086175861,8.41305911,110590.0,110580.0,0.38604921]
[1759086184156,8.4272479,110590.0,110580.0,0.38604921]
[1759086185552,8.41305911,110590.0,110580.0,0.38604921]
[1759086195731,8.41305911,110590.0,110580.0,0.38907921]
[1759086197403,8.24040223,110590.0,110580.0,0.38907921]
[1759086197606,8.37562121,110590.0,110580.0,0.38907921]
[1759086199796,8.15650487,110590.0,110580.0,0.38907921]
[1759086200840,8.19273957,110590.0,110580.0,0.38907921]
[1759086201861,8.20692839,110590.0,110580.0,0.38907921]
[1759086202331,8.19273957,110590.0,110580.0,0.38907921]
[1759086205669,8.20692836,110590.0,110580.0,0.38907921]
[1759086206769,8.19273957,110590.0,110580.0,0.38907921]
[1759086208270,8.41184547,110590.0,110580.0,0.38907921]
[1759086222325,8.41184547,110590.0,110580.0,0.10747921]
[1759086222594,8.41184547,110590.0,110580.0,0.20210921]
[1759086225473,8.42603429,110590.0,110580.0,0.20210921]
[1759086225691,8.41184547,110590.0,110580.0,0.20210921]
[1759086226536,8.41184547,110590.0,110580.0,0.38398921]
[1759086227235,8.0362347,110590.0,110580.0,0.38921921]
[1759086227466,0.0362347,110590.0,110580.0,0.38921921]
[1759086227661,0.5362347,110590.0,110580.0,0.38921921]
[1759086227894,8.0,110590.0,110580.0,0.38921921]
[1759086230489,8.03595487,110590.0,110580.0,0.38921921]
[1759086230670,0.03595487,110590.0,110580.0,0.38921921]
[1759086230932,0.75122154,110590.0,110580.0,0.47822921]
[1759086231563,0.75122154,110590.0,110580.0,0.48346921]
[1759086233197,0.78802327,110590.0,110580.0,0.48346921]
[1759086233400,0.80221175,110590.0,110580.0,0.48346921]
[1759086234352,0.78802327,110590.0,110580.0,0.48346921]
[1759086235946,0.03680173,110590.0,110580.0,0.48346921]
[1759086236151,0.75122154,110590.0,110580.0,0.48346921]
[1759086238016,0.78893273,110590.0,110580.0,0.48346921]
[1759086246477,0.6133556,110590.0,110580.0,0.48346921]